Cogmind - Beta 10.2 @@@ ROGUE MODE // 2021.12.19 @ 11:29:21 Player: Kasaris Result: Destroyed by Y-45 Defender with Heavy Assault Rifle Performance ------------- Evolutions (1) 500 Regions Visited (2) 400 Robots Destroyed (8) 40 Value Destroyed (223) 223 Prototype IDs (0) 0 Alien Tech Used (0) 0 Bonus (200) 200 TOTAL SCORE: 1363 Bonus ------- Pacifist 200 Cogmind --------- Core Integrity 0/400 Matter 300/300 Energy 99/100 System Corruption 0% Temperature Cool (18) Movement Core (150) Ox2 Location -9/Materials Parts ------- > --- POWER (1) -------- (None) > --- PROPULSION (3) --- (None) > --- UTILITY (2) ------ Medium Storage Unit Targeting Computer > --- WEAPON (3) ------- (None) > --- INVENTORY (8) ---- Light Ion Engine Light Treads Light Treads Small Storage Unit Small Storage Unit Light Armor Plating Peak State ------------ > --- POWER ------------ Ion Engine > --- PROPULSION ------- Aluminum Leg Aluminum Leg Aluminum Leg > --- UTILITY ---------- Medium Storage Unit Targeting Computer > --- WEAPON ----------- Heavy EM Pulse Gun Heavy EM Pulse Gun Heavy Assault Rifle > --- INVENTORY -------- Light Ion Engine Light Treads Light Treads Small Storage Unit Small Storage Unit Light Armor Plating EM Pulse Gun Small Laser [Rating: 12] Favorites ----------- Power Ion Engine Engine Ion Engine Propulsion Aluminum Leg Leg Aluminum Leg Utility Targeting Computer Storage Medium Storage Unit Processor Targeting Computer Weapon Heavy EM Pulse Gun Energy Gun Heavy EM Pulse Gun Ballistic Gun Heavy Assault Rifle Build | -11 -10 -9 ------- Run | Scr Mat Mat Slots Evolved 2 | . . 2 Power . | . . . Propulsion 1 | . . 1 Utility . | . . . Weapon 1 | . . 1 Parts Attached 18 | 6 1 11 Power 2 | 1 . 1 Engine 2 | 1 . 1 Core . | . . . Reactor . | . . . Propulsion 5 | 2 . 3 Treads . | . . . Leg 5 | 2 . 3 Wheel . | . . . Hover . | . . . Flight . | . . . Utility 4 | 1 1 2 Device . | . . . Storage 3 | 1 . 2 Processor 1 | . 1 . Hackware . | . . . Protection . | . . . Artifact . | . . . Weapon 7 | 2 . 5 Energy Gun 6 | 2 . 4 Energy Cannon . | . . . Ballistic Gun 1 | . . 1 Ballistic Cannon . | . . . Launcher . | . . . Special Weapon . | . . . Impact Weapon . | . . . Slashing Weapon . | . . . Piercing Weapon . | . . . Special Melee Weapon . | . . . Unidentified Prototypes . | . . . Parts Lost 10 | . . 10 Power 2 | . . 2 Propulsion 4 | . . 4 Utility . | . . . Weapon 4 | . . 4 Highest Loss Streak 9 | . . 9 Average Slot Usage (%) 87 | . 94 86 Engine 10 | . 14 9 Leg 29 | . 28 29 Storage 11 | . 14 10 Processor 10 | . 8 11 Energy Gun 23 | . 28 22 Ballistic Gun 1 | . . 2 Naked Turns . | . . . Heaviest Build 22 | 12 12 22 Greatest Support 30 | 20 20 30 Greatest Overweight (x) 2 | . . 2 Average Overweight (x) . | . . . Largest Inventory Capacity 8 | 6 6 8 Average Capacity 7 | 5 6 7 Most Carried 8 | 3 4 8 Average Carried 5 | 1 3 6 Final Capacity 8 | 6 6 8 Final Carried 6 | 3 4 6 Class Distribution -------------------- 58% | Mutant 41% | Gunner Dominant Class ---------------- Mutant | -10/Materials Gunner | -9/Materials Resources | -11 -10 -9 ----------- Run | Scr Mat Mat Matter Collected 354 | 226 44 84 Remotely . | . . . Salvage Created 311 | . . 311 Parts 21 | . . 21 Haulers Intercepted . | . . . Recyclers Shooed 1 | . . 1 Parts Field Recycled . | . . . Retrieved Matter . | . . . Parts Self-Destructed . | . . . Prevented . | . . . Kills | -11 -10 -9 ------- Run | Scr Mat Mat Combat Hostiles Destroyed 5 | . . 5 Guns 2 | . . 2 AOE 1 | . . 1 Classes Destroyed 5 | . . 5 Worker 2 | . . 2 Recycler 1 | . . 1 Grunt 2 | . . 2 Duelist 1 | . . 1 Sentry 2 | . . 2 Best Kill Streak 5 | . . 5 Combat Bots Only 3 | . . 3 Max Kills in Single Turn 3 | . . 3 Gunslinging . | . . . Exploded 1 | . . 1 Melee . | . . . Uniques/NPCs Destroyed . | . . . Combat | -11 -10 -9 -------- Run | Scr Mat Mat Damage Taken 1246 | . . 1246 Core 400 | . . 400 Absorbed by Shields . | . . . Core Remaining (%) 100 | 100 100 . Volleys Fired 18 | . . 18 Largest 3 | . . 3 Hottest 130 | . . 130 Shots Fired 44 | . . 44 Gun 44 | . . 44 Cannon . | . . . Launcher . | . . . Special . | . . . Kinetic 3 | . . 3 Thermal 5 | . . 5 Explosive . | . . . Electromagnetic 36 | . . 36 Robot Hit Streak 7 | . . 7 Robot Miss Streak 2 | . . 2 Penetration Max . | . . . Secondary Targets . | . . . Shots Hit Robots 31 | . . 31 Core Hits 11 | . . 11 Critical Hits . | . . . Critical Kills . | . . . Critical Parts Destroyed . | . . . Melee Attacks . | . . . Impact . | . . . Slashing . | . . . Piercing . | . . . Sneak Attacks . | . . . Combat Hostiles . | . . . Follow-up Attacks . | . . . Damage Inflicted 768 | . . 768 Guns 333 | . . 333 Cannons . | . . . Explosions 435 | . . 435 Melee . | . . . Ramming . | . . . Kinetic . | . . . Thermal 457 | . . 457 Explosive . | . . . Electromagnetic 311 | . . 311 Impact . | . . . Slashing . | . . . Piercing . | . . . Highest Corruption 2 | . 2 . Average Corruption 2 | . 2 . Corruption Purged . | . . . Overload Shots . | . . . Overflow Damage 122 | . . 122 Projectiles . | . . . Explosions 122 | . . 122 Melee . | . . . Knockbacks . | . . . Impact . | . . . Kinetic . | . . . Secondary . | . . . Self-Inflicted Damage 121 | . . 121 Shots 2 | . . 2 Rammed . | . . . Targets Rammed . | . . . Kicked . | . . . Crushed . | . . . Highest Temperature 249 | . . 249 Average Temperature 105 | . . 105 Received Heat Transfer 363 | . . 363 Effects 1 | . . 1 Energy Bleed 1 | . . 1 Siege Activations . | . . . Robots Corrupted 2 | . . 2 Combat Hostiles 2 | . . 2 Parts Fried 5 | . . 5 Impact Corruptions . | . . . Robots Melted . | . . . Combat Hostiles . | . . . Parts Melted . | . . . Heat Transferred 350 | . . 350 Parts Sabotaged . | . . . Parts Stolen . | . . . Parts Stripped . | . . . Power Chain Reactions 1 | . . 1 Missiles Intercepted . | . . . Alert | -11 -10 -9 ------- Run | Scr Mat Mat Peak Influence 175 | . 7 175 Initial 2 | . . 2 Average 36 | . 5 51 Maximum Alert Level . | . . . Low Security (%) 100 | 100 100 100 Level 1 . | . . . Level 2 . | . . . Level 3 . | . . . Level 4 . | . . . Level 5 . | . . . High Security . | . . . Max Security . | . . . Squads Dispatched . | . . . Investigation . | . . . Extermination . | . . . Reinforcement . | . . . Assault . | . . . Garrison . | . . . Intercept . | . . . Construction Impeded . | . . . Haulers Reinforced . | . . . Stealth | -11 -10 -9 --------- Run | Scr Mat Mat Distress Signals 3 | . . 3 Communications Jammed . | . . . Distress Signals . | . . . Times Spotted 21 | . . 21 Peak Tracking Total 9 | . 1 9 Tactical Retreats 1 | . . 1 Traps | -11 -10 -9 ------- Run | Scr Mat Mat Traps Triggered 1 | . 1 . Indirectly . | . . . Trap Hack Attempts . | . . . Triggered . | . . . Disarmed . | . . . Reprogrammed . | . . . Reused . | . . . Traps Extracted . | . . . Installed . | . . . Triggered . | . . . Machines | -11 -10 -9 ---------- Run | Scr Mat Mat Machines Disabled 1 | . . 1 Max in Single Turn 1 | . . 1 Machines Sabotaged . | . . . Garrisons Compromised . | . . . Overloaded Fab Kills . | . . . Fab Network Shutdowns . | . . . Hacking | -11 -10 -9 --------- Run | Scr Mat Mat Machines Accessed 3 | . 1 2 Terminals 3 | . 1 2 Fabricators . | . . . Repair Stations . | . . . Recycling Units . | . . . Scanalyzers . | . . . Garrison Access . | . . . Total Hacks 4 | . 2 2 Successful 3 | . 1 2 Failed 1 | . 1 . Catastrophic . | . . . Database Lockouts . | . . . Manual . | . . . Terminals 4 | . 2 2 Fabricators . | . . . Repair Stations . | . . . Recycling Units . | . . . Scanalyzers . | . . . Garrison Access . | . . . Terminal Hacks 3 | . 1 2 Level Access Points 1 | . . 1 Branch Access Points 1 | . 1 . Zone Layout 1 | . . 1 Fabricator Hacks . | . . . Repair Station Hacks . | . . . Recycling Unit Hacks . | . . . Scanalyzer . | . . . Garrison Access Hacks . | . . . Unauthorized Hacks . | . . . Terminals . | . . . Fabricators . | . . . Repair Stations . | . . . Recycling Units . | . . . Scanalyzers . | . . . Garrison Access . | . . . Data Cores Recovered . | . . . Used . | . . . Hacking Detections 1 | . 1 . Full Trace Events . | . . . Feedback Events . | . . . Feedback Blocked . | . . . Robot Schematics Acquired . | . . . Robots Built . | . . . Matter . | . . . Time . | . . . Total Robot Build Rating . | . . . Part Schematics Acquired . | . . . Parts Built . | . . . Matter . | . . . Time . | . . . Total Part Build Rating . | . . . Parts Repaired . | . . . Time . | . . . Parts Recycled . | . . . Recycled Matter . | . . . Retrieved Matter . | . . . Retrieved Components . | . . . Parts Scanalyzed . | . . . Part Schematics Acquired . | . . . Parts Damaged . | . . . Bothacking | -11 -10 -9 ------------ Run | Scr Mat Mat Used RIF Installer . | . . . Robots Hacked . | . . . Non-combat . | . . . Combat . | . . . Robot Hacks Applied . | . . . Relay Couplers Released . | . . . Robots Rewired . | . . . Allies Hacked . | . . . Hacks Repelled . | . . . Allies | -11 -10 -9 -------- Run | Scr Mat Mat Total Allies . | . . . Largest Group . | . . . Highest-Rated Group . | . . . Highest-Rated Ally . | . . . Total Orders . | . . . Ally Attacks . | . . . Total Damage . | . . . Kills . | . . . Allies Corrupted . | . . . Allies Melted . | . . . Intel | -11 -10 -9 ------- Run | Scr Mat Mat Robot Analysis Total . | . . . Derelict Logs Recovered . | . . . Drone Launches . | . . . Drone Recoveries . | . . . Exploration | -11 -10 -9 ------------- Run | Scr Mat Mat Turns Passed 686 | 69 139 478 Spaces Moved 466 | 49 114 303 Core 11 | 2 . 9 Treads . | . . . Legs 455 | 47 114 294 Wheels . | . . . Hover . | . . . Flight . | . . . Fastest Speed 50 | 50 120 120 Average Speed 120 | 117 120 121 Slowest Speed 150 | 120 120 150 Overloaded Moves . | . . . Propulsion Burnouts . | . . . Robots Hopped . | . . . Cave-ins Triggered . | . . . Exploration Rate (%) 21 | 3 25 35 Regions Visited 2 Branch Regions . Pre-discovered Areas . | . . . Known Exits Taken . | . . . Unknown Exits Taken 2 | 1 1 . Scrap Searched . | . . . Spaces Dug . | . . . Terrain Destroyed 49 | . . 49 Melee . | . . . Projectile . | . . . AOE 49 | . . 49 Terrain Rammed . | . . . Walls Destroyed . | . . . Machines Disabled . | . . . Actions | -11 -10 -9 --------- Run | Scr Mat Mat Total 548 | 57 115 376 Wait 36 | . . 36 Move 464 | 48 113 303 Hop . | . . . Pick Up 8 | 3 1 4 Fast Attach 13 | 6 1 6 Attach 4 | . . 4 Detach 2 | . . 2 Swap 1 | . . 1 Drop 2 | . . 2 Fire 18 | . . 18 Melee . | . . . Ram . | . . . Kick . | . . . Crush . | . . . Escape Stasis . | . . . Rewire . | . . . Trap . | . . . Miscellaneous . | . . . Route ------- -11/Scrapyard -10/Materials (discovered 3 exits: *Mat / Min x2) -9/Materials (discovered 4 exits: *Mat x3 / [*Min]) History --------- Turn | Location | Event 2 | -11/Scrapyard | Met Revision 17 6 | -11/Scrapyard | Discovered new exit (range 15) 70 | -11/Scrapyard | Entered Materials 103 | -10/Materials | Identified exit to Mines 134 | -10/Materials | Discovered new exit (range 8) 209 | -10/Materials | Entered another Materials area 209 | -9/Materials | Evolved 2 slots: Propulsion x1, Weapon x1 310 | -9/Materials | Identified exit to Materials 554 | -9/Materials | Discovered new exit (range 7) 667 | -9/Materials | Lost 9 parts (2p3n4w) 679 | -9/Materials | Core integrity fell below 50% 685 | -9/Materials | Core integrity fell below 20% 687 | -9/Materials | Destroyed by Y-45 Defender with Heavy Assault Rifle Last Messages --------------- 00605_ Destroyed Aluminum Leg. 00605_ Sml. Laser destroyed. 00605_ Destroyed Sml. Laser. 00605_ R-06 Scavenger destroyed. 00605_ Destroyed Com. Wheel. 00605_ K-01 Serf destroyed. 00605_ Destroyed Lgt. Ion Engine. 00607_ U-05 Engineer lays Concrete. 00608_ Acquired Aluminum Leg. 00610_ U-05 Engineer lays Concrete. 00610_ Ion Engine destroyed. 00611_ U-05 Engineer builds a Wall. 00611_ Acquired Lgt. Ion Engine. 00613_ Acquired 24 matter. 00615_ U-05 Engineer builds a Wall. 00619_ U-05 Engineer lays Concrete. 00620_ U-05 Engineer builds a Wall. 00625_ U-05 Engineer lays Concrete. 00635_ Lgt. Ion Engine destroyed. 00636_ Aluminum Leg destroyed. Map ----- +----------------------------------------------------+ | ????????????????????????????????????????????? | | ????????????????????????????????????????????? | | ????????????????????????????????????????????? | | ????????????????????????????????????????????? | | ????????????????????????????????????????????? | | ????????????????????????????????????????????? | | ????????????????????????????????????????????? | | ???????#????????????????????????????????????? | | ???????# #############+###+#???????????#### | | ???????+ #??????????## | | ???????# +?????????## | | ???????# #?????????# """ | | ???????# ##+##### ##### #????######""" | | ??????????????????# #?????????????+ ##% | | ??????????????????# #?????????????#""" #" | | ??????????????????# #?????#???????#""" #" = | | ?????????????????##+#####+#???????#""" #"!= | | ?????????????????# #???????# #" % | | ?????????????????#gY """ #?####### ! #"* | | ?????????????????# s""" #?# ##+######## | | ?????????????????#| g""" #?# | | ?????????????????# s s #?# | | ?????????????????# s""" #?# | | ?????????????????# """ #?# ##"######## | | ?????????????????# g""" #?## ##?????????? | | ?????????????????# @ #??# #??????????? | | ???????# ###########k####??# #??????????? | | ?????? #### #??????????? | | ??????< #??????????? | | ?????? ! #??????????? | | ????????############### T #??????????? | | ??????????????????????# #??????????? | | ??????????????????????# #??????????? | | ??????????????????????+ """ #??????????? | | ??????????????????????# """ #??????????? | | ??????????????????????# """ #??????????? | | ??????????????????????# #??????????? | | ??????????????????????#!!! #??????????? | | ??????????????????????#!! #??????????? | | ??????????????????????#!! #??????????? | | ??????????????????????# [[ #??????????? | | ??????????????????????# [ ? ??????????? | | ??????????????????????? ?? ???????????? | | ??????????????????????? ???????????????? | | ????????????????????????????????????????????? | | ????????????????????????????????????????????? | | ????????????????????????????????????????????? | | ????????????????????????????????????????????? | | ????????????????????????????????????????????? | | ????????????????????????????????????????????? | +----------------------------------------------------+ Best States ------------- Heat Dissipation 28 Energy Generation 10 Energy Capacity 250 Matter Stores 300 Matter Capacity 300 Sight Range 16 Terrain Scan Density 10 Evasion (%) 40 Targeting Accuracy 5 Item Schematics ----------------- None Robot Schematics ------------------ None Fabricated ------------ Nothing Alien Tech Used ----------------- None Achievements -------------- None Challenges ------------ None Game ------ Seed DerelictDisruptorScreen Manual? 0 Play Time 00:18:34 Cumulative 24.4 hours Start 2021.12.18 @ 22:05:42 End 2021.12.19 @ 11:29:21 Sessions 2 Manual Loads 0 Difficulty Rogue Special Mode None Game No. 85 Rogue 85 Adventurer 0 Explorer 0 Win Type - Total 0 Types 0/0/0/0/0/0/0/0/0 Lore% 18 Gallery% 27 Achievement% 16 Wizard Run 0 Options --------- ASCII 0 Keyboard 1 Movement Numpad Keybinds 0 Fullscreen 1 Font 16/Cog Map View 76x50 Tactical HUD 1 Map Filters NONE Filters NONE Steam 1 RUN: 9748fca9-066a-4918-a3d2-76deca115868